bitfinex/quotes_SOLUSD_20250922
["timestamp","ask_amount","ask_price","bid_price","bid_amount"]
[1758585024831,26.69,220.7,220.65,4.53187435]
[1758585025031,0.69,220.69,220.65,4.53187435]
[1758585025233,0.69,220.69,220.65,5.23187435]
[1758585026252,26.0,220.7,220.66,0.7]
[1758585026655,26.69,220.7,220.66,0.7]
[1758585027265,0.69,220.69,220.65,4.53187435]
[1758585027761,0.69,220.69,220.65,5.20187435]
[1758585027962,26.0,220.7,220.65,5.20187435]
[1758585028166,26.66,220.7,220.65,5.20187435]
[1758585028761,26.0,220.7,220.65,5.20187435]
[1758585028963,0.66,220.69,220.65,4.53187435]
[1758585029145,0.66,220.68,220.64,4.5322686]
[1758585029346,0.66,220.67,220.64,4.5322686]
[1758585029546,0.66,220.66,220.64,4.5322686]
[1758585029744,0.66,220.65,220.62,4.53268062]
[1758585029948,2.20756654,220.64,220.57,13.59559401]
[1758585030253,2.20756654,220.64,220.58,4.53343135]
[1758585031065,2.20756654,220.64,220.58,4.53346566]
[1758585031366,26.0,220.61,220.55,0.67]
[1758585031551,61.6,220.61,220.55,0.67]
[1758585032672,61.6,220.61,220.57,4.53369456]
[1758585032970,61.6,220.61,220.55,5.20393228]
[1758585034180,61.6,220.61,220.56,4.53381601]
[1758585036084,66.13288608,220.61,220.55,0.67]
[1758585036257,66.13288608,220.61,220.54,14.0347233]
[1758585036589,66.13288608,220.61,220.54,0.67]
[1758585037463,66.13288608,220.61,220.54,4.53420103]
[1758585037978,66.13288608,220.61,220.53,79.56072504]
[1758585038154,66.13288608,220.61,220.51,4.53474297]
[1758585039883,66.13288608,220.61,220.52,4.53470191]
[1758585041681,66.13288608,220.61,220.53,4.53451986]
[1758585042059,66.13288608,220.61,220.54,4.53432006]
[1758585042670,66.13288608,220.61,220.53,0.67]
[1758585044882,66.13288608,220.61,220.5,27.67063074]
[1758585045080,66.13288608,220.61,220.51,0.67]
[1758585046161,66.13288608,220.61,220.52,0.67]
[1758585051178,66.13288608,220.61,220.51,4.53491414]
[1758585051368,66.13288608,220.61,220.53,0.67]
[1758585054468,66.13288608,220.61,220.54,0.67]
[1758585056684,31.19288608,220.61,220.55,0.67]
[1758585056890,4.53288608,220.61,220.6,0.87]
[1758585057068,67.81652545,220.61,220.6,0.2]
[1758585057789,68.49652545,220.61,220.6,0.2]
[1758585060392,26.0,220.57,220.51,0.69]
[1758585060597,2.42363937,220.52,220.51,0.69]
[1758585060890,37.28363937,220.52,220.51,0.69]
[1758585061191,4.53494172,220.51,220.5,0.2]
[1758585070693,138.73494172,220.51,220.5,0.2]
[1758585072805,139.41494172,220.51,220.5,0.2]
[1758585073180,5.21494172,220.51,220.5,0.2]
[1758585073901,7.03341284,220.51,220.5,0.2]
[1758585075891,10.07254181,220.51,220.5,0.2]
[1758585078907,44.95254181,220.51,220.5,0.2]
[1758585079810,41.91341284,220.51,220.5,0.2]
[1758585081194,6.35341284,220.51,220.5,0.2]
[1758585081510,39.41494172,220.51,220.5,0.2]
[1758585082416,4.53494172,220.51,220.5,0.2]
[1758585082616,39.41494172,220.51,220.5,0.2]
[1758585084018,2.42363937,220.52,220.5,0.92]
[1758585084230,34.88,220.51,220.5,0.92]
[1758585086010,2.42363937,220.52,220.5,0.92]
[1758585086214,34.88,220.51,220.5,0.2]
[1758585086811,34.88,220.51,220.5,0.92]
[1758585088817,34.88,220.51,220.5,0.2]
[1758585089009,34.88,220.51,220.5,0.91]
[1758585091324,60.88,220.51,220.5,0.91]
[1758585093103,64.00363937,220.51,220.5,0.2]
[1758585093711,68.53858109,220.51,220.5,0.2]
[1758585094520,66.11494172,220.51,220.5,0.2]
[1758585094723,67.66823233,220.51,220.5,0.2]
[1758585097307,70.71599034,220.51,220.5,0.2]
[1758585097826,71.74678211,220.51,220.5,0.2]
[1758585100428,73.56525323,220.51,220.5,0.2]
[1758585101332,73.56525323,220.51,220.5,1e-08]
[1758585101509,72.53446146,220.51,220.5,1e-08]
[1758585101709,86.13005547,220.51,220.5,1e-08]
[1758585102405,26.0,220.47,220.4,0.91]
[1758585102610,1.55329061,220.42,220.4,0.2]
[1758585102829,34.88,220.41,220.4,0.2]
[1758585103333,35.58,220.41,220.4,0.2]
[1758585103534,34.88,220.41,220.4,0.2]
[1758585104534,40.97028983,220.41,220.4,0.2]
[1758585106546,44.02410818,220.41,220.4,0.2]
[1758585107428,40.97028983,220.41,220.4,0.2]
[1758585110634,6.09028983,220.41,220.4,0.2]
[1758585110817,40.97028983,220.41,220.4,0.2]
[1758585111431,6.09028983,220.41,220.4,0.2]
[1758585111633,40.97028983,220.41,220.4,0.2]
[1758585112139,30.5367954,220.42,220.4,0.2]
[1758585112359,34.88,220.41,220.4,0.2]
[1758585112845,34.88,220.41,220.4,0.91]
[1758585113046,134.2,220.42,220.4,0.91]
[1758585113373,34.88,220.41,220.4,0.91]
[1758585114924,34.88,220.41,220.4,0.2]
[1758585115633,39.41699922,220.41,220.4,0.2]
[1758585117447,34.88,220.41,220.4,0.2]
[1758585119377,39.41699922,220.41,220.4,0.2]
[1758585119844,40.12699922,220.41,220.4,0.2]
[1758585121737,53.72259323,220.41,220.4,0.2]
[1758585121942,56.76938014,220.41,220.4,0.2]
[1758585122245,58.58876109,220.41,220.4,0.2]
[1758585123263,59.98716397,220.41,220.4,0.2]
[1758585124569,7.75478305,220.41,220.4,0.2]
[1758585124764,40.97028983,220.41,220.4,0.2]
[1758585127764,6.09028983,220.41,220.4,0.2]
[1758585127953,40.97028983,220.41,220.4,0.2]
[1758585128150,4.53671481,220.43,220.4,0.2]
[1758585128463,34.88,220.42,220.4,0.92]
[1758585128674,34.88,220.41,220.4,0.2]
[1758585129555,34.88,220.41,220.4,0.92]
[1758585129756,26.0,220.43,220.4,0.92]
[1758585129945,5.93452065,220.46,220.41,0.72]
[1758585129946,34.88,220.42,220.41,0.72]
[1758585130653,26.0,220.44,220.41,0.72]
[1758585130854,34.88,220.43,220.41,0.72]
[1758585131057,34.88,220.42,220.41,0.72]
[1758585132577,26.0,220.47,220.41,5.25699922]
[1758585132880,34.88,220.46,220.42,0.72]
[1758585133256,30.5353735,220.49,220.43,4.53658757]
[1758585133455,26.0,220.45,220.43,5.25658757]
[1758585133756,60.88,220.45,220.44,0.72]
[1758585134461,34.88,220.5,220.44,0.72]
[1758585134667,26.0,220.47,220.44,0.72]
[1758585135048,34.88,220.48,220.44,0.72]
[1758585135373,34.88,220.48,220.45,4.536176]
[1758585135556,34.88,220.48,220.46,0.72]
[1758585137175,34.88,220.48,220.47,4.5357645]
[1758585138462,34.88,220.48,220.45,4.53601808]
[1758585138664,0.72,220.47,220.42,5.19679339]
[1758585138863,35.6,220.46,220.42,4.53679339]
[1758585139177,35.6,220.46,220.41,4.53699922]
[1758585139378,35.6,220.46,220.42,0.66]
[1758585139570,34.88,220.46,220.42,0.66]
[1758585140359,0.72,220.5,220.43,0.66]
[1758585140678,60.88,220.49,220.43,0.66]
[1758585141788,60.88,220.49,220.43,5.19653137]
[1758585141987,61.6,220.49,220.43,5.19653137]
[1758585143971,26.0,220.52,220.44,0.66]
[1758585144163,34.88,220.53,220.45,13.59559401]
[1758585144371,34.88,220.53,220.46,0.66]
[1758585145293,34.88,220.53,220.47,4.5357645]
[1758585145483,34.88,220.53,220.48,0.66]
[1758585145662,34.88,220.53,220.49,0.66]
[1758585145967,34.88,220.53,220.5,0.66]
[1758585146486,35.6,220.53,220.47,16.53517575]
[1758585146783,0.72,220.52,220.45,4.53598482]
[1758585146978,26.0,220.5,220.45,4.53598482]
[1758585147182,60.86,220.5,220.45,4.53598482]
[1758585147377,61.57,220.5,220.45,5.25598482]
[1758585148176,61.57,220.5,220.45,0.72]
[1758585148775,61.57,220.5,220.44,11.3407246]
[1758585148978,61.57,220.5,220.45,0.72]
[1758585149171,61.57,220.5,220.46,4.53597024]
[1758585154499,0.71,220.49,220.46,4.53597024]
[1758585154700,0.71,220.48,220.46,4.53597024]
[1758585155002,61.57,220.5,220.46,4.53597024]
[1758585155299,61.57,220.5,220.45,4.536176]
[1758585155485,60.86,220.5,220.45,5.256176]
[1758585155688,0.71,220.49,220.45,5.256176]
[1758585159012,60.86,220.5,220.45,5.256176]
[1758585159214,61.57,220.5,220.45,5.256176]
[1758585159891,0.71,220.49,220.45,5.256176]
[1758585161303,60.86,220.5,220.45,5.256176]
[1758585161504,61.57,220.5,220.45,5.256176]
[1758585161704,61.57,220.5,220.46,0.72]
[1758585161905,61.57,220.5,220.44,11.3407246]
[1758585161906,34.86,220.52,220.47,0.72]
[1758585162304,35.57,220.52,220.47,0.72]
[1758585162499,0.71,220.51,220.44,11.3407246]
[1758585162822,0.71,220.5,220.44,11.3407246]
[1758585163115,35.57,220.49,220.44,11.3407246]
[1758585163415,0.71,220.48,220.44,12.0607246]
[1758585163613,0.71,220.48,220.44,16.59710638]
[1758585166004,0.71,220.47,220.44,11.3407246]
[1758585166195,0.71,220.48,220.44,12.0607246]
[1758585166597,35.57,220.49,220.44,11.3407246]
[1758585166820,35.57,220.49,220.44,12.0607246]
[1758585167007,35.57,220.49,220.44,11.3407246]
[1758585167318,35.57,220.49,220.44,16.59710638]
[1758585168693,34.86,220.49,220.44,16.59710638]
[1758585168903,0.71,220.48,220.44,16.59710638]
[1758585169104,0.71,220.47,220.41,4.53679895]
[1758585169421,0.71,220.46,220.41,4.53679895]
[1758585169723,0.71,220.45,220.41,5.25679895]
[1758585171630,2.42592125,220.47,220.41,4.53679895]
[1758585171815,26.0,220.44,220.4,0.2]
[1758585172019,0.71,220.43,220.4,0.2]
[1758585172607,28.42592125,220.44,220.4,0.2]
[1758585172907,28.42592125,220.44,220.41,0.72]
[1758585172908,34.86,220.44,220.41,0.72]
[1758585173220,26.0,220.46,220.42,0.72]
[1758585173437,61.57,220.46,220.42,0.72]
[1758585175215,61.57,220.46,220.43,4.53658757]
[1758585175805,0.71,220.45,220.43,4.53658757]
[1758585177239,0.71,220.45,220.41,4.53699922]
[1758585177439,0.71,220.45,220.41,5.21699922]
[1758585178741,26.0,220.46,220.42,0.68]
[1758585178934,26.0,220.46,220.41,15.87949729]
[1758585179239,26.0,220.46,220.43,4.53658757]
[1758585180137,26.67,220.46,220.43,4.53658757]
[1758585180438,0.67,220.45,220.43,4.53658757]
[1758585181438,0.67,220.45,220.41,15.87949729]
[1758585181640,0.67,220.45,220.41,16.55949729]
[1758585183138,0.67,220.44,220.41,4.53699922]
[1758585183439,0.67,220.43,220.4,0.2]
[1758585184136,26.0,220.41,220.4,0.2]
[1758585184315,60.86,220.41,220.4,0.2]
[1758585184518,61.53,220.41,220.4,0.2]
[1758585185628,60.86,220.41,220.4,4.73720508]
[1758585185827,60.86,220.41,220.4,0.2]
[1758585186139,61.53,220.41,220.4,0.2]
[1758585187539,60.86,220.41,220.4,0.2]
[1758585188254,61.53,220.41,220.4,0.2]
[1758585189565,34.86,220.42,220.4,5.41720508]
[1758585189742,195.06,220.44,220.41,0.68]
[1758585190062,195.73,220.44,220.4,4.73720508]
[1758585190355,0.67,220.43,220.4,4.73720508]
[1758585190574,0.67,220.42,220.4,4.73720508]
[1758585190864,35.53,220.42,220.4,4.73720508]
[1758585191358,34.86,220.42,220.4,4.73720508]
[1758585192228,35.53,220.42,220.4,4.73720508]
[1758585192843,34.86,220.42,220.4,4.73720508]
[1758585193043,0.67,220.41,220.4,4.73720508]
[1758585193245,34.86,220.42,220.4,4.73720508]
[1758585193447,35.53,220.42,220.4,4.73720508]
[1758585194561,34.86,220.42,220.4,4.73720508]
[1758585194761,35.53,220.42,220.4,4.73720508]
[1758585195743,0.67,220.41,220.4,4.73720508]
[1758585196743,34.86,220.42,220.4,4.73720508]
[1758585198738,35.53,220.42,220.4,4.73720508]
[1758585199767,34.86,220.42,220.4,4.73720508]
[1758585199952,134.2,220.44,220.41,0.68]
[1758585200259,134.2,220.44,220.4,16.08021778]
[1758585200260,134.2,220.44,220.42,0.68]
[1758585200465,35.53,220.47,220.42,0.68]
[1758585200832,0.67,220.46,220.42,0.68]
[1758585201144,0.67,220.46,220.43,4.53658757]
[1758585203067,34.86,220.49,220.44,0.68]
[1758585203373,34.86,220.49,220.45,4.536176]
[1758585203554,0.67,220.48,220.45,4.536176]
[1758585203755,160.2,220.51,220.45,4.536176]
[1758585203966,35.53,220.5,220.45,4.536176]
[1758585204155,0.67,220.49,220.45,4.536176]
[1758585204356,0.67,220.49,220.45,16.556616]
[1758585205566,0.67,220.48,220.45,15.876616]
[1758585206174,0.67,220.47,220.45,4.536176]
[1758585206358,0.67,220.46,220.45,4.536176]
[1758585206559,26.67,220.46,220.4,13.79559401]
[1758585206787,0.67,220.45,220.4,13.79559401]
[1758585206959,0.67,220.44,220.4,13.79559401]
[1758585207162,0.67,220.44,220.4,14.47559401]
[1758585207556,34.86,220.45,220.4,14.47559401]
[1758585207756,35.54,220.45,220.41,4.53699922]
[1758585208054,0.68,220.44,220.41,4.53699922]
[1758585210079,34.86,220.45,220.41,4.53699922]
[1758585210573,35.54,220.45,220.41,4.53699922]
[1758585210962,35.54,220.45,220.41,5.20699922]
[1758585211587,34.86,220.45,220.41,4.53699922]
[1758585211800,35.54,220.45,220.41,4.53699922]
[1758585212163,34.86,220.45,220.41,4.53699922]
[1758585212366,0.68,220.44,220.41,4.53699922]
[1758585215791,34.86,220.45,220.42,0.67]
[1758585216097,34.86,220.45,220.41,4.53699922]
[1758585216305,35.54,220.45,220.41,5.20699922]
[1758585216808,0.68,220.45,220.41,5.20699922]
[1758585218504,0.68,220.44,220.41,4.53699922]
[1758585219299,61.54,220.46,220.41,5.20699922]
[1758585219482,0.68,220.45,220.41,5.20699922]
[1758585219688,60.86,220.46,220.41,4.53699922]
[1758585219917,61.54,220.46,220.43,4.53658757]
[1758585220211,0.68,220.45,220.43,4.53658757]
[1758585221017,34.86,220.46,220.44,0.67]
[1758585221309,34.86,220.46,220.43,4.53658757]
[1758585221515,34.86,220.46,220.43,5.20658757]
[1758585221925,35.54,220.46,220.41,16.54911635]
[1758585222213,35.54,220.46,220.42,0.67]
[1758585222913,35.54,220.46,220.4,0.2]
[1758585223113,26.0,220.43,220.4,0.2]
[1758585223414,34.86,220.42,220.4,0.2]
[1758585223623,35.54,220.42,220.4,0.2]
[1758585226018,1.81863647,220.47,220.4,0.2]
[1758585226219,0.68,220.44,220.4,0.2]
[1758585226406,34.86,220.43,220.4,0.2]
[1758585226733,0.68,220.42,220.4,0.2]
[1758585226895,0.68,220.41,220.4,0.2]
[1758585229731,26.0,220.46,220.4,5.40714727]
[1758585229732,26.68,220.46,220.4,5.40714727]
[1758585230026,0.68,220.45,220.4,4.73714727]
[1758585230233,0.68,220.44,220.4,4.73714727]
[1758585231091,61.54,220.46,220.4,4.73714727]
[1758585231306,61.54,220.46,220.41,0.67]
[1758585232019,0.68,220.45,220.42,4.53679339]
[1758585232913,34.86,220.47,220.43,0.67]
[1758585233116,35.54,220.47,220.43,0.67]
[1758585234332,0.68,220.49,220.44,5.20638178]
[1758585234514,0.68,220.48,220.44,5.20638178]
[1758585234714,0.68,220.48,220.44,4.53638178]
[1758585234927,0.68,220.47,220.44,4.53638178]
[1758585235231,0.68,220.46,220.44,4.53638178]
[1758585235914,0.68,220.46,220.42,11.3417874]
[1758585236516,0.68,220.46,220.42,12.0117874]
[1758585237337,34.86,220.49,220.42,12.0117874]
[1758585237519,0.67,220.48,220.42,12.0117874]
[1758585238834,0.67,220.48,220.42,16.54858079]
[1758585239538,3.72728002,220.48,220.42,16.54858079]
[1758585239713,0.67,220.48,220.42,16.54858079]
[1758585240132,3.72735163,220.48,220.42,16.54858079]
[1758585240327,0.67,220.47,220.42,4.53679339]
[1758585240530,0.67,220.46,220.42,4.53679339]
[1758585241232,3.05735163,220.48,220.42,4.53679339]
[1758585241439,3.05735163,220.48,220.41,4.53699922]
[1758585241440,0.67,220.45,220.41,4.53699922]
[1758585241732,0.67,220.45,220.41,5.22699922]
[1758585242136,0.67,220.47,220.41,5.22699922]
[1758585244837,3.05735163,220.48,220.42,0.69]
[1758585245040,26.0,220.48,220.42,0.69]
[1758585245225,34.84,220.49,220.42,0.69]
[1758585245816,35.51,220.49,220.42,0.69]
[1758585247243,35.51,220.49,220.43,4.53658757]
[1758585247445,0.67,220.48,220.43,4.53658757]
[1758585247835,0.67,220.47,220.43,5.22658757]
[1758585248144,34.84,220.49,220.44,0.69]
[1758585248350,35.51,220.49,220.45,0.69]
[1758585248728,35.51,220.49,220.43,16.56805651]
[1758585249725,160.2,220.51,220.43,16.56805651]
[1758585249726,134.87,220.51,220.44,14.28559401]
[1758585249927,134.87,220.51,220.45,0.69]
[1758585250544,0.67,220.53,220.46,13.59559401]
[1758585250728,26.67,220.53,220.47,0.69]
[1758585252439,26.67,220.53,220.48,15.87445573]
[1758585252644,26.0,220.53,220.48,16.56445573]
[1758585252856,0.67,220.52,220.48,16.56445573]
[1758585254438,26.0,220.53,220.49,0.69]
[1758585254831,26.0,220.53,220.45,15.876616]
[1758585254832,26.0,220.53,220.46,13.59559401]
[1758585255028,0.67,220.52,220.47,0.69]
[1758585255242,0.67,220.51,220.47,0.69]
[1758585255835,0.67,220.5,220.46,13.59559401]
[1758585256034,0.71,220.49,220.46,13.59559401]
[1758585256446,0.71,220.51,220.47,4.5357645]
[1758585256646,0.71,220.5,220.47,4.5357645]
[1758585259044,26.0,220.53,220.48,0.67]
[1758585259251,0.71,220.53,220.49,0.67]
[1758585259652,0.71,220.53,220.47,15.87517575]
[1758585259837,0.71,220.53,220.47,16.54517575]
[1758585261062,0.71,220.53,220.47,15.87517575]
[1758585261241,0.71,220.53,220.48,0.67]
[1758585261437,0.71,220.53,220.49,0.67]
[1758585262163,0.71,220.53,220.5,4.53514739]
[1758585264054,0.71,220.52,220.5,4.53514739]
[1758585264252,0.71,220.52,220.47,11.33941125]
[1758585264253,0.71,220.51,220.47,15.87517575]
[1758585264954,0.71,220.51,220.47,16.54517575]
[1758585265749,0.71,220.55,220.48,2.22287577]
[1758585265943,0.71,220.55,220.49,0.67]
[1758585267362,0.71,220.55,220.5,15.87301587]
[1758585267549,0.7,220.54,220.5,15.87301587]
[1758585268478,0.7,220.54,220.5,16.54301587]
[1758585268769,26.0,220.56,220.5,17.42589164]
[1758585268952,26.7,220.56,220.51,0.67]
[1758585269152,0.7,220.55,220.51,0.67]
[1758585269760,0.7,220.55,220.52,4.53473607]
[1758585271954,34.84,220.58,220.52,4.53473607]
[1758585272262,0.7,220.57,220.52,16.54157626]
[1758585272597,0.7,220.57,220.53,0.67]
[1758585272957,0.7,220.57,220.52,15.87157626]
[1758585273163,0.7,220.57,220.52,16.54157626]
[1758585273964,0.7,220.57,220.53,0.67]
[1758585274154,0.7,220.57,220.52,15.87157626]
[1758585274356,0.7,220.57,220.52,16.54157626]
[1758585277282,0.7,220.57,220.53,0.67]
[1758585277489,0.7,220.57,220.54,4.53432483]
[1758585281871,34.84,220.58,220.52,15.87157626]
[1758585282097,35.54,220.58,220.53,0.67]
[1758585282404,35.54,220.58,220.54,0.67]
[1758585282890,0.7,220.6,220.55,0.67]
[1758585283196,0.7,220.59,220.55,0.67]
[1758585283987,0.7,220.59,220.56,4.53391367]
[1758585292712,13.6286201,220.61,220.57,0.67]
[1758585292912,0.7,220.61,220.54,18.2937823]
[1758585293090,0.7,220.6,220.55,0.67]
[1758585293404,0.7,220.59,220.55,0.67]
[1758585295084,0.7,220.58,220.54,4.534129]
[1758585295400,0.7,220.57,220.54,4.534129]
[1758585295580,0.7,220.56,220.52,0.67]
[1758585295787,13.59559401,220.59,220.53,4.53453025]
[1758585296010,0.7,220.58,220.54,0.67]
[1758585296209,0.7,220.57,220.54,0.67]
[1758585296405,0.7,220.56,220.52,4.5347327]
[1758585296615,0.7,220.56,220.52,5.2047327]
[1758585298206,26.71,220.55,220.51,13.53946105]
[1758585298404,0.71,220.54,220.5,4.53497181]
[1758585298689,0.71,220.53,220.5,4.53497181]
[1758585298910,0.71,220.53,220.5,18.28882323]
[1758585299103,0.71,220.53,220.5,4.53497181]
[1758585299595,60.82,220.55,220.51,0.71]
[1758585299922,35.53,220.55,220.51,0.71]
[1758585301884,35.53,220.55,220.52,4.53473607]
[1758585302082,0.71,220.55,220.52,4.53473607]
[1758585304522,46.15855616,220.56,220.51,4.53494172]
[1758585304813,0.71,220.54,220.51,4.53494172]
[1758585305203,0.71,220.53,220.5,13.42645067]
[1758585305413,0.71,220.52,220.47,13.59559401]
[1758585305587,0.71,220.51,220.47,14.30559401]
[1758585305791,0.71,220.5,220.43,0.71]
[1758585306011,35.53,220.5,220.44,13.59559401]
[1758585306293,0.71,220.49,220.44,13.59559401]
[1758585306510,0.71,220.48,220.45,4.536176]
[1758585306806,34.82,220.5,220.43,18.13200893]
[1758585307009,0.71,220.49,220.43,18.13200893]
[1758585307218,0.71,220.48,220.43,18.13200893]
[1758585307420,0.71,220.47,220.43,18.13200893]
[1758585307628,0.71,220.47,220.43,18.84200893]
[1758585307815,0.71,220.49,220.44,0.71]
[1758585308005,48.45543395,220.5,220.44,14.48121502]
[1758585308205,34.82,220.5,220.45,0.71]
[1758585308707,35.53,220.5,220.46,0.71]
[1758585309230,0.71,220.5,220.46,0.71]
[1758585310327,0.71,220.5,220.47,4.5357645]
[1758585312530,0.71,220.49,220.47,4.5357645]
[1758585313034,0.71,220.49,220.45,4.536176]
[1758585313225,0.71,220.49,220.45,5.246176]
[1758585314037,34.82,220.5,220.47,4.5357645]
[1758585314228,0.71,220.49,220.47,4.5357645]
[1758585314931,0.71,220.48,220.44,18.44243324]
[1758585315135,26.71,220.47,220.42,13.59559401]
[1758585315334,0.71,220.46,220.42,13.59559401]
[1758585315541,0.71,220.45,220.41,18.13259323]
[1758585316243,35.49,220.44,220.4,0.2]
[1758585316538,49.12915346,220.44,220.4,0.2]
[1758585316924,35.49,220.44,220.4,0.2]
[1758585317114,1.8185538,220.43,220.4,0.2]
[1758585317426,0.67,220.42,220.4,0.2]
[1758585317625,0.67,220.41,220.4,0.2]
[1758585317831,35.49,220.41,220.4,0.2]
[1758585318248,37.30871917,220.41,220.4,0.2]
[1758585322434,44.26936377,220.41,220.4,0.2]
[1758585325230,39.73236455,220.41,220.4,0.2]
[1758585325431,2.48871917,220.41,220.4,0.2]
[1758585325736,37.30871917,220.41,220.4,0.2]
[1758585331643,171.50871917,220.41,220.4,0.2]
[1758585331845,1.81871917,220.41,220.4,0.2]
[1758585332156,34.82,220.42,220.4,0.88]
[1758585332359,1.81863648,220.43,220.4,0.88]
[1758585332542,36.63863648,220.43,220.4,0.88]
[1758585332856,36.63863648,220.43,220.4,5.41720508]
[1758585333870,27.81863648,220.43,220.41,0.68]
[1758585334156,34.82,220.44,220.4,4.73720508]
[1758585334352,34.82,220.44,220.41,0.68]
[1758585334859,46.36463718,220.44,220.41,0.68]
[1758585335033,34.82,220.44,220.41,0.68]
[1758585337054,34.82,220.44,220.42,4.53679339]
[1758585337537,2.05840288,220.52,220.43,14.27559401]
[1758585337758,35.48,220.52,220.45,13.59559401]
[1758585337962,35.48,220.52,220.46,0.68]
[1758585339046,35.48,220.52,220.47,4.5357645]
[1758585339358,0.66,220.51,220.47,4.5357645]
[1758585339550,34.86,220.5,220.47,4.5357645]
[1758585340266,34.86,220.5,220.49,1.55202404]
[1758585340768,34.86,220.5,220.48,4.53546323]
[1758585343567,34.86,220.5,220.47,4.5357645]
[1758585345960,35.52,220.5,220.47,4.5357645]
[1758585347965,34.86,220.5,220.46,4.53597024]
[1758585348161,34.86,220.5,220.48,0.68]
[1758585348349,34.82,220.51,220.48,0.68]
[1758585348746,34.82,220.51,220.46,15.87589585]
[1758585349065,35.48,220.51,220.47,0.68]
[1758585349761,35.48,220.51,220.48,4.53555878]
[1758585349955,34.82,220.51,220.48,5.21555878]
[1758585350365,35.48,220.51,220.48,5.21555878]
[1758585350967,0.66,220.51,220.48,5.21555878]
[1758585351970,0.66,220.51,220.48,4.53555878]
[1758585352264,34.82,220.52,220.48,4.53555878]
[1758585352467,0.66,220.5,220.48,4.53555878]
[1758585352666,34.82,220.52,220.46,15.87589585]
[1758585352667,0.66,220.49,220.46,15.87589585]
[1758585352857,0.66,220.51,220.46,15.87589585]
[1758585353057,0.66,220.51,220.47,0.68]
[1758585353771,0.66,220.51,220.48,4.53555878]
[1758585356373,34.82,220.52,220.48,15.87445573]
[1758585356576,35.48,220.52,220.48,16.55445573]
[1758585357770,0.66,220.52,220.48,16.55445573]
[1758585361657,0.66,220.52,220.49,0.7]
[1758585361856,60.82,220.53,220.49,0.7]
[1758585362064,61.53,220.53,220.49,0.7]
[1758585362696,61.53,220.53,220.48,11.33889695]
[1758585362880,0.71,220.52,220.46,4.53597024]
[1758585363180,61.53,220.53,220.48,0.7]
[1758585363377,60.82,220.53,220.46,15.87589585]
[1758585363584,61.53,220.53,220.49,0.7]
[1758585364278,61.53,220.53,220.46,15.87589585]
[1758585364580,11.33196526,220.62,220.46,15.87589585]
[1758585364581,3.80271498,220.66,220.51,13.59559401]
[1758585364777,0.71,220.6,220.54,15.87013692]
[1758585365084,35.53,220.61,220.55,14.29559401]
[1758585365263,0.71,220.61,220.56,0.7]
[1758585365883,0.71,220.61,220.55,13.59559401]
[1758585366182,0.71,220.61,220.56,0.7]
[1758585366781,0.71,220.61,220.56,4.53391367]
[1758585366981,0.71,220.61,220.57,0.7]